bitfinex/quotes_BTCUSD_20251007
["timestamp","ask_amount","ask_price","bid_price","bid_amount"]
[1759800207093,0.01068391,124520.0,124510.0,0.41985988]
[1759800209740,0.01068391,124520.0,124510.0,0.50309988]
[1759800213026,0.01068391,124520.0,124510.0,2.04810488]
[1759800213456,0.01043391,124520.0,124510.0,1.24081888]
[1759800213704,0.01043391,124520.0,124510.0,1.55297888]
[1759800213912,0.01043391,124520.0,124510.0,1.43412788]
[1759800214142,0.01043391,124520.0,124510.0,1.35470188]
[1759800218148,0.01043391,124520.0,124510.0,1.27114188]
[1759800218361,0.01043391,124520.0,124510.0,0.50289988]
[1759800218798,0.01043391,124520.0,124510.0,0.64333188]
[1759800219006,0.01043391,124520.0,124510.0,0.33129188]
[1759800219209,0.01043391,124520.0,124510.0,0.64333188]
[1759800220257,0.01043391,124520.0,124510.0,0.33129188]
[1759800220468,0.01254391,124520.0,124510.0,0.63827188]
[1759800220672,0.01254391,124520.0,124510.0,0.49993988]
[1759800220878,0.01043391,124520.0,124510.0,0.49993988]
[1759800221095,0.01043391,124520.0,124510.0,0.41948988]
[1759800221294,0.01043391,124520.0,124510.0,0.50296988]
[1759800222577,0.01043391,124520.0,124510.0,0.19096988]
[1759800222787,0.01043391,124520.0,124510.0,0.50296988]
[1759800224483,0.01043391,124520.0,124510.0,0.52706819]
[1759800226533,0.01043391,124520.0,124510.0,0.21506819]
[1759800226958,0.01043391,124520.0,124510.0,0.52694819]
[1759800232181,0.01043391,124520.0,124510.0,1.48330619]
[1759800232610,0.01043391,124520.0,124510.0,1.27821419]
[1759800235873,0.01043391,124520.0,124510.0,0.52678819]
[1759800238100,0.01257391,124520.0,124510.0,0.44027819]
[1759800238330,0.01043391,124520.0,124510.0,0.52694819]
[1759800238965,0.01043391,124520.0,124510.0,0.52690819]
[1759800239168,0.01257391,124520.0,124510.0,0.52173819]
[1759800239368,0.01043391,124520.0,124510.0,0.52370819]
[1759800239761,0.01043391,124520.0,124510.0,0.52689819]
[1759800243377,0.48304111,124520.0,124510.0,0.41411988]
[1759800243640,0.48304111,124520.0,124510.0,0.02521022]
[1759800243845,0.48304111,124520.0,124510.0,0.23028]
[1759800244045,0.87277361,124520.0,124510.0,0.002]
[1759800244161,0.87277361,124520.0,124510.0,0.23032]
[1759800245210,0.66810928,124520.0,124510.0,0.23032]
[1759800245663,0.66810928,124520.0,124510.0,0.39094966]
[1759800246311,0.66810928,124520.0,124510.0,0.23032]
[1759800247823,0.66810928,124520.0,124510.0,0.39094966]
[1759800247990,0.66810928,124520.0,124510.0,0.23032]
[1759800248551,0.66810928,124520.0,124510.0,0.39094966]
[1759800248775,0.66810928,124520.0,124510.0,0.23032]
[1759800249753,0.66810928,124520.0,124510.0,0.2302]
[1759800251312,0.66810928,124520.0,124510.0,0.39082966]
[1759800252628,0.09569597,124520.0,124510.0,0.39279966]
[1759800252847,0.09355597,124520.0,124510.0,0.39279966]
[1759800253066,0.09355597,124520.0,124510.0,0.39598966]
[1759800253067,0.01043391,124520.0,124510.0,0.39598966]
[1759800253466,0.01257391,124520.0,124510.0,0.39279966]
[1759800253869,0.01043391,124520.0,124510.0,0.39279966]
[1759800254075,0.01043391,124520.0,124510.0,0.39598966]
[1759800254325,0.01257391,124520.0,124510.0,0.39279966]
[1759800254537,0.01043391,124520.0,124510.0,0.39279966]
[1759800254746,0.01257391,124520.0,124510.0,0.39279966]
[1759800254864,0.01043391,124520.0,124510.0,0.39279966]
[1759800255300,0.01043391,124520.0,124510.0,0.39580966]
[1759800255709,0.01247391,124520.0,124510.0,0.39279966]
[1759800256311,0.01043391,124520.0,124510.0,0.39279966]
[1759800256791,0.01043391,124520.0,124510.0,0.39580966]
[1759800263407,0.01043391,124520.0,124510.0,1.18194366]
[1759800263625,0.01043391,124520.0,124510.0,0.84786666]
[1759800264684,0.01043391,124520.0,124510.0,0.80824366]
[1759800266944,0.01043391,124520.0,124510.0,0.58004366]
[1759800267148,0.01043391,124520.0,124510.0,0.16760966]
[1759800267369,0.01043391,124520.0,124510.0,0.68346466]
[1759800271243,0.01043391,124520.0,124510.0,0.47912966]
[1759800271443,0.01043391,124520.0,124510.0,0.63305466]
[1759800278592,0.01043391,124520.0,124510.0,0.16760966]
[1759800278792,0.01244391,124520.0,124510.0,0.16459966]
[1759800278999,0.01538391,124520.0,124510.0,0.47410966]
[1759800279371,0.01244391,124520.0,124510.0,0.47606966]
[1759800279580,0.01043391,124520.0,124510.0,0.47606966]
[1759800280025,0.01043391,124520.0,124510.0,0.47924966]
[1759800284800,0.01043391,124520.0,124510.0,0.50334791]
[1759800289463,0.01043391,124520.0,124510.0,2.08486891]
[1759800289644,0.01043391,124520.0,124510.0,1.77543191]
[1759800289845,0.01043391,124520.0,124510.0,1.93545891]
[1759800290899,0.01043391,124520.0,124510.0,2.01758097]
[1759800291063,0.00043391,124520.0,124510.0,2.01658097]
[1759800291476,0.01043391,124520.0,124510.0,2.01958097]
[1759800292419,0.01043391,124520.0,124510.0,2.02258097]
[1759800294699,0.01043391,124520.0,124510.0,2.02254097]
[1759800303808,0.01043391,124520.0,124510.0,1.93906097]
[1759800304015,0.01043391,124520.0,124510.0,1.71110097]
[1759800304228,0.01258391,124520.0,124510.0,2.01932097]
[1759800304678,0.01579391,124520.0,124510.0,0.37009825]
[1759800304888,0.42435046,124520.0,124510.0,0.39458966]
[1759800305095,0.01579391,124520.0,124510.0,0.39458966]
[1759800305548,0.17641067,124520.0,124510.0,0.16662966]
[1759800305986,0.17641067,124520.0,124510.0,0.39458966]
[1759800306423,0.01579391,124520.0,124510.0,0.39458966]
[1759800306623,0.17641067,124520.0,124510.0,0.39458966]
[1759800309696,0.48276099,124520.0,124510.0,0.39458966]
[1759800311037,0.17641067,124520.0,124510.0,0.39458966]
[1759800311866,0.01258391,124520.0,124510.0,0.39458966]
[1759800312035,0.01579391,124520.0,124510.0,0.39458966]
[1759800312887,0.17641067,124520.0,124510.0,0.39458966]
[1759800313707,0.01579391,124520.0,124510.0,0.39458966]
[1759800314369,0.48276099,124520.0,124510.0,0.39458966]
[1759800315251,0.94310664,124520.0,124510.0,0.006]
[1759800315453,0.94310664,124520.0,124510.0,0.23396]
[1759800315659,0.87223337,124520.0,124510.0,0.006]
[1759800316103,0.89633787,124520.0,124510.0,0.006]
[1759800316317,0.88633787,124520.0,124510.0,0.003]
[1759800316551,0.98433467,124520.0,124510.0,0.006]
[1759800316764,1.32433467,124520.0,124510.0,0.006]
[1759800316988,1.32433467,124520.0,124510.0,0.003]
[1759800317215,1.55229467,124520.0,124510.0,0.003]
[1759800317447,1.61490511,124520.0,124510.0,0.003]
[1759800318134,1.92125543,124520.0,124510.0,0.003]
[1759800318343,1.61490511,124520.0,124510.0,0.003]
[1759800318756,1.92125543,124520.0,124510.0,0.003]
[1759800318965,1.61490511,124520.0,124510.0,0.003]
[1759800319175,1.92125543,124520.0,124510.0,0.003]
[1759800319864,0.50062966,124510.0,124500.0,15.28916535]
[1759800320080,1.27969916,124510.0,124500.0,15.28916535]
[1759800321260,1.42770236,124510.0,124500.0,15.28916535]
[1759800321679,1.43770236,124510.0,124500.0,15.28916535]
[1759800321863,1.20970236,124510.0,124500.0,15.28916535]
[1759800322107,0.09312206,124510.0,124500.0,15.67780792]
[1759800322321,0.25375172,124510.0,124500.0,15.51716535]
[1759800322535,0.24375172,124510.0,124500.0,15.67780792]
[1759800322717,0.25675172,124510.0,124500.0,15.67780792]
[1759800322951,0.24375172,124510.0,124500.0,15.51716535]
[1759800323130,0.24375172,124510.0,124500.0,15.67780792]
[1759800323475,0.56210204,124510.0,124500.0,15.68075792]
[1759800323682,0.56310204,124510.0,124500.0,15.68075792]
[1759800324088,0.56210204,124510.0,124500.0,15.51716535]
[1759800324230,0.56210204,124510.0,124500.0,15.68075792]
[1759800324445,0.56210204,124510.0,124500.0,15.67780792]
[1759800324961,0.56210204,124510.0,124500.0,15.68075792]
[1759800325355,1.00590204,124510.0,124500.0,15.68075792]
[1759800327309,0.53892206,124510.0,124500.0,15.68075792]
[1759800327716,0.4558,124510.0,124500.0,15.68075792]
[1759800328547,0.4558,124510.0,124500.0,15.69914427]
[1759800329772,0.4558,124510.0,124500.0,15.68075792]
[1759800331559,0.012,124510.0,124500.0,15.68075792]
[1759800332850,0.012,124510.0,124500.0,15.69903209]
[1759800333047,0.012,124510.0,124500.0,15.68075792]
[1759800338975,0.012,124510.0,124500.0,17.26644798]
[1759800339179,0.012,124510.0,124500.0,17.29054514]
[1759800340223,0.012,124510.0,124500.0,17.29454514]
[1759800340678,0.00043391,124520.0,124510.0,0.50062966]
[1759800340877,0.00043391,124520.0,124510.0,2.51060966]
[1759800341207,0.00043391,124520.0,124510.0,2.59692172]
[1759800341627,0.00043391,124520.0,124510.0,2.62192172]
[1759800341828,0.00043391,124520.0,124510.0,2.62492172]
[1759800342248,0.00943391,124520.0,124510.0,2.62492172]
[1759800344038,0.00943391,124520.0,124510.0,2.64901498]
[1759800345164,0.06536749,124550.0,124540.0,0.16059097]
[1759800345387,0.06541724,124550.0,124540.0,0.47732097]
[1759800345595,0.06601205,124550.0,124540.0,0.47732097]
[1759800346261,0.02601205,124550.0,124540.0,0.47732097]
[1759800346778,0.00064456,124550.0,124540.0,1.87185597]
[1759800347368,0.00064456,124550.0,124540.0,2.21185597]
[1759800347575,0.00664456,124550.0,124540.0,2.21485597]
[1759800347786,0.00664456,124550.0,124540.0,2.13433597]
[1759800348003,0.00664456,124550.0,124540.0,2.21781597]
[1759800348848,0.00664456,124550.0,124540.0,2.30093803]
[1759800350149,0.00664456,124550.0,124540.0,2.32593803]
[1759800350356,0.00664456,124550.0,124540.0,2.33424357]
[1759800350784,0.06536749,124590.0,124580.0,0.16053941]
[1759800350998,0.06541724,124590.0,124580.0,0.39374941]
[1759800352284,4.975e-05,124590.0,124580.0,0.39374941]
[1759800352531,0.00104975,124590.0,124580.0,0.39374941]
[1759800353150,0.01303975,124590.0,124580.0,0.16253941]
[1759800353365,0.01303975,124590.0,124580.0,0.39045941]
[1759800353580,0.47191659,124590.0,124580.0,0.38845941]
[1759800353839,0.47391659,124590.0,124580.0,0.39145941]
[1759800354059,0.00209975,124590.0,124580.0,0.39250941]
[1759800354272,0.47191659,124590.0,124580.0,0.39041941]
[1759800354412,0.47491659,124590.0,124580.0,0.39041941]
[1759800354634,0.16856627,124590.0,124580.0,0.39041941]
[1759800354824,0.47197659,124590.0,124580.0,0.39141941]
[1759800355070,0.47197659,124590.0,124580.0,0.39346941]
[1759800355671,0.47197659,124590.0,124580.0,0.16558941]
[1759800355886,0.16562627,124590.0,124580.0,0.16558941]
[1759800356082,0.47197659,124590.0,124580.0,0.39346941]
[1759800356239,0.47491659,124590.0,124580.0,0.39141941]
[1759800356438,0.47276933,124590.0,124580.0,0.39141941]
[1759800356684,0.47276933,124590.0,124580.0,0.39346941]
[1759800356885,0.16641901,124590.0,124580.0,0.39346941]
[1759800357065,0.47276933,124590.0,124580.0,0.39346941]
[1759800358015,0.16641901,124590.0,124580.0,0.39346941]
[1759800358222,0.00384249,124590.0,124580.0,0.39670941]
[1759800359525,0.00384249,124590.0,124580.0,0.39666941]
[1759800359744,0.00384249,124590.0,124580.0,0.48010941]
[1759800360924,0.00384249,124590.0,124580.0,0.49818219]
[1759800361118,0.00384249,124590.0,124580.0,0.18690219]
[1759800361321,0.00384249,124590.0,124580.0,0.49818219]
[1759800361594,0.00384249,124590.0,124580.0,1.95716625]
[1759800362305,0.00384249,124590.0,124580.0,1.98216625]
[1759800362486,0.00384249,124590.0,124580.0,2.00624548]
[1759800362743,0.00084249,124590.0,124580.0,2.00424548]
[1759800362943,0.00084249,124590.0,124580.0,1.69696548]
[1759800362944,0.00284249,124590.0,124580.0,1.69696548]
[1759800363159,0.00284249,124590.0,124580.0,2.34600548]
[1759800363376,0.00284249,124590.0,124580.0,1.70096548]
[1759800363607,0.00284249,124590.0,124580.0,2.34600548]
[1759800365372,1e-08,124590.0,124580.0,2.34600548]
[1759800365597,0.53745281,124600.0,124590.0,0.18552652]
[1759800365807,0.50151587,124600.0,124590.0,3.80833758]
[1759800366007,0.50151587,124600.0,124590.0,4.45337758]
[1759800366629,0.13282587,124600.0,124590.0,4.45637758]
[1759800367235,1e-08,124600.0,124590.0,4.45737758]
[1759800367692,1e-08,124600.0,124590.0,2.89768358]
[1759800367908,1e-08,124600.0,124590.0,1.58529358]
[1759800368111,1e-08,124600.0,124590.0,0.75924158]
[1759800368284,0.00499001,124600.0,124590.0,0.24792652]
[1759800368489,0.00499001,124600.0,124590.0,0.47777652]
[1759800368490,0.00949998,124600.0,124590.0,0.47777652]
[1759800368624,0.00744998,124600.0,124590.0,0.82101652]
[1759800369029,0.00744998,124600.0,124590.0,0.50981652]
[1759800369284,0.01243998,124600.0,124590.0,0.24792652]
[1759800369497,0.17295362,124600.0,124590.0,0.0874]
[1759800369698,0.17295362,124600.0,124590.0,0.47572652]
[1759800369906,0.00949998,124600.0,124590.0,0.47572652]
[1759800370116,0.17001362,124600.0,124590.0,0.004]
[1759800370330,0.85656411,124600.0,124590.0,0.004]
[1759800370549,0.85656411,124600.0,124590.0,0.2318]
[1759800371001,0.25607568,124600.0,124590.0,0.2318]
[1759800371203,0.27118783,124600.0,124590.0,0.2318]
[1759800371606,0.25627382,124600.0,124590.0,0.2318]
[1759800372034,0.25627382,124600.0,124590.0,0.2288]
[1759800372236,0.27118965,124600.0,124590.0,0.2288]
[1759800372438,0.27118964,124600.0,124590.0,0.2278]
[1759800372685,0.27618964,124600.0,124590.0,0.2288]
[1759800372891,0.112736,124600.0,124590.0,0.39037652]
[1759800373121,0.25228381,124600.0,124590.0,0.22985]
[1759800373333,0.26427381,124600.0,124590.0,0.2298]
[1759800373542,0.27919659,124600.0,124590.0,0.2298]
[1759800373963,0.27919659,124600.0,124590.0,0.39561652]
[1759800373964,0.25828381,124600.0,124590.0,0.39561652]
[1759800374172,0.25627381,124600.0,124590.0,0.38832652]
[1759800374579,0.25333381,124600.0,124590.0,0.38832652]
[1759800374786,0.25333381,124600.0,124590.0,0.39037652]
[1759800375407,0.25838381,124600.0,124590.0,0.39137652]
[1759800375619,0.25838381,124600.0,124590.0,0.23085]
[1759800375842,0.26142381,124600.0,124590.0,0.2288]
[1759800376661,0.26142381,124600.0,124590.0,0.001]
[1759800376819,0.26142381,124600.0,124590.0,0.2288]
[1759800377469,0.27636466,124600.0,124590.0,0.22884]
[1759800378273,0.87685309,124600.0,124590.0,0.001]
[1759800378488,0.89406134,124600.0,124590.0,0.001]
[1759800378642,0.29357291,124600.0,124590.0,0.001]
[1759800378854,0.27636466,124600.0,124590.0,0.001]
[1759800379243,0.11071102,124600.0,124590.0,0.16664652]
[1759800379442,0.01264811,124600.0,124590.0,0.25004652]
[1759800380248,0.01264811,124600.0,124590.0,0.55120252]
[1759800380489,0.01264811,124600.0,124590.0,0.25004652]
[1759800380909,0.01264811,124600.0,124590.0,0.36578152]
[1759800381117,0.01264811,124600.0,124590.0,0.25004652]
[1759800381372,0.01474811,124600.0,124590.0,0.16363652]
[1759800381542,0.01474811,124600.0,124590.0,0.47495652]
[1759800382074,0.01264811,124600.0,124590.0,0.47495652]
[1759800382239,0.01264811,124600.0,124590.0,0.47796652]
[1759800382653,0.01474811,124600.0,124590.0,0.47495652]
[1759800382895,0.01778811,124600.0,124590.0,0.47284652]
[1759800383364,0.01474811,124600.0,124590.0,0.47495652]
[1759800384356,0.01778811,124600.0,124590.0,0.47284652]
[1759800384615,0.26142381,124600.0,124590.0,0.001]
[1759800384837,0.26142381,124600.0,124590.0,0.229]
[1759800386892,0.26142381,124600.0,124590.0,0.38952652]
[1759800387128,0.26142381,124600.0,124590.0,0.229]
[1759800387510,0.25838381,124600.0,124590.0,0.38952652]
[1759800387943,0.25838381,124600.0,124590.0,0.229]
[1759800388176,0.26142381,124600.0,124590.0,0.229]
[1759800389246,0.86191224,124600.0,124590.0,0.001]
[1759800389594,0.87686154,124600.0,124590.0,0.001]
[1759800389795,0.27637311,124600.0,124590.0,0.001]
[1759800390016,0.87686154,124600.0,124590.0,0.001]
[1759800390231,0.86191224,124600.0,124590.0,0.001]
[1759800392147,0.94190904,124600.0,124590.0,0.001]
[1759800392978,0.93445907,124600.0,124590.0,0.001]
[1759800393191,0.94193193,124600.0,124590.0,0.001]
[1759800393404,0.2563067,124600.0,124590.0,0.00311]
[1759800393618,0.2584067,124600.0,124590.0,0.00311]
[1759800393829,0.2584067,124600.0,124590.0,0.16363652]
[1759800394042,0.2563067,124600.0,124590.0,0.39167652]
[1759800395087,0.2563067,124600.0,124590.0,0.38700909]
[1759800395304,0.00519814,124600.0,124590.0,0.38911909]
[1759800395513,0.00519814,124600.0,124590.0,0.39212909]
[1759800398431,0.00519814,124600.0,124590.0,0.69971009]
[1759800398758,0.00519814,124600.0,124590.0,0.68554709]
[1759800399343,0.00519814,124600.0,124590.0,0.16408909]
[1759800399584,0.00519814,124600.0,124590.0,0.59783109]
[1759800399992,0.00519814,124600.0,124590.0,0.47552909]
[1759800400238,0.00519814,124600.0,124590.0,0.73940109]
[1759800400555,0.00720814,124600.0,124590.0,0.16107909]
[1759800400734,0.00519814,124600.0,124590.0,0.47251909]
[1759800400949,0.00519814,124600.0,124590.0,0.47549909]
[1759800401884,0.00519814,124600.0,124590.0,0.38911909]
[1759800402091,0.00519814,124600.0,124590.0,0.47251909]
[1759800403889,0.00519814,124600.0,124590.0,0.47247909]
[1759800404166,0.00519814,124600.0,124590.0,0.16107909]
[1759800404347,0.00720814,124600.0,124590.0,0.47247909]
[1759800404587,0.00519814,124600.0,124590.0,0.47545909]
[1759800405226,0.00519814,124600.0,124590.0,0.47247909]
[1759800405432,0.00519814,124600.0,124590.0,0.47562909]
[1759800405817,0.00715814,124600.0,124590.0,0.47247909]
[1759800407211,0.00519814,124600.0,124590.0,0.47247909]
[1759800407814,0.00715814,124600.0,124590.0,0.47247909]
[1759800408002,0.00715814,124600.0,124590.0,0.15896909]
[1759800408261,0.00519814,124600.0,124590.0,0.47244909]
[1759800408441,0.00519814,124600.0,124590.0,0.47559909]
[1759800410649,0.00519814,124600.0,124590.0,0.91538509]
[1759800419245,0.00519814,124600.0,124590.0,1.25538509]
[1759800422377,0.00519814,124600.0,124590.0,1.33850715]
[1759800422964,0.00519814,124600.0,124590.0,1.33838715]
[1759800424132,0.00019814,124600.0,124590.0,1.33838715]
[1759800424333,0.00119814,124600.0,124590.0,1.34238715]
[1759800424735,0.00119814,124600.0,124590.0,1.34538715]
[1759800424939,0.00119814,124600.0,124590.0,1.37038715]
[1759800429117,0.00119814,124600.0,124590.0,1.47038715]
[1759800431561,0.02656563,124630.0,124620.0,0.16048788]
[1759800431722,0.02661538,124630.0,124620.0,1.22781588]
[1759800431921,0.02661538,124630.0,124620.0,1.23312588]
[1759800432119,0.02720963,124630.0,124620.0,1.23312588]
[1759800432848,0.000644,124630.0,124620.0,1.23312588]
[1759800433866,0.006644,124630.0,124620.0,1.57412588]
[1759800434695,0.000644,124630.0,124620.0,1.27634988]
[1759800434936,0.005794,124630.0,124620.0,0.96764488]
[1759800435115,0.006794,124630.0,124620.0,0.96864488]
[1759800435319,0.001644,124630.0,124620.0,0.97080488]
[1759800435480,0.001644,124630.0,124620.0,0.97395488]
[1759800436320,0.001644,124630.0,124620.0,0.66279488]
[1759800436605,0.001644,124630.0,124620.0,0.97395488]
[1759800441952,0.001644,124630.0,124620.0,1.05707694]
[1759800445623,0.001644,124630.0,124620.0,0.74591694]
[1759800445797,0.001644,124630.0,124620.0,1.05703694]
[1759800446971,0.006764,124630.0,124620.0,0.51787188]
[1759800447184,0.006764,124630.0,124620.0,0.82899188]
[1759800447391,0.006764,124630.0,124620.0,0.82919188]
[1759800447822,0.003784,124630.0,124620.0,0.83126188]
[1759800447961,0.001644,124630.0,124620.0,0.83126188]
[1759800448529,0.001644,124630.0,124620.0,0.83441188]
[1759800448955,0.001644,124630.0,124620.0,0.83126188]
[1759800449388,0.003784,124630.0,124620.0,0.51787188]
[1759800449591,0.47294392,124630.0,124620.0,0.47476788]
[1759800449804,0.167239,124630.0,124620.0,0.47476788]
[1759800450285,0.006764,124630.0,124620.0,0.47476788]
[1759800450439,0.003784,124630.0,124620.0,0.47476788]
[1759800450833,0.164259,124630.0,124620.0,0.47476788]
[1759800451038,0.167239,124630.0,124620.0,0.47476788]
[1759800451430,0.006764,124630.0,124620.0,0.47476788]
[1759800452272,0.003784,124630.0,124620.0,0.47476788]
[1759800452627,0.006764,124630.0,124620.0,0.47476788]
[1759800453617,0.003784,124630.0,124620.0,0.47683788]
[1759800453828,0.001644,124630.0,124620.0,0.47998788]
[1759800455227,0.001644,124630.0,124620.0,0.47683788]
[1759800455652,0.001644,124630.0,124620.0,0.47998788]
[1759800456105,0.001644,124630.0,124620.0,0.47683788]
[1759800456733,0.001644,124630.0,124620.0,0.48008788]
[1759800458232,0.001644,124630.0,124620.0,0.47671788]
[1759800458990,0.003604,124630.0,124620.0,0.47671788]
[1759800459432,0.006694,124630.0,124620.0,0.47464788]
[1759800459663,0.003604,124630.0,124620.0,0.47666788]
[1759800459886,0.001644,124630.0,124620.0,0.47666788]
[1759800462359,0.001644,124630.0,124620.0,0.16550788]
[1759800462558,0.003604,124630.0,124620.0,0.16348788]
[1759800462758,0.006694,124630.0,124620.0,0.47464788]
[1759800463820,0.006694,124630.0,124620.0,0.39124788]
[1759800463963,0.006694,124630.0,124620.0,0.47464788]
[1759800464632,0.167169,124630.0,124620.0,0.47464788]
[1759800464974,0.006694,124630.0,124620.0,0.47464788]
[1759800465443,0.006694,124630.0,124620.0,0.47666788]
[1759800465444,0.003604,124630.0,124620.0,0.47666788]
[1759800465698,0.001644,124630.0,124620.0,2.49468438]
[1759800465943,0.001644,124630.0,124620.0,2.57682194]
[1759800472088,0.001644,124630.0,124620.0,2.40129095]
[1759800472289,0.001644,124630.0,124620.0,2.56177883]
[1759800479241,0.001644,124630.0,124620.0,2.58677883]
[1759800480445,0.000644,124630.0,124620.0,2.58677883]
[1759800480621,0.002644,124630.0,124620.0,2.59977883]
[1759800482933,0.02921149,124660.0,124650.0,0.16044925]
[1759800483171,0.02921149,124660.0,124650.0,1.06316425]
[1759800483883,0.02921149,124660.0,124650.0,1.05993425]
[1759800484035,0.00204,124660.0,124650.0,1.05993425]
[1759800484241,0.00509,124660.0,124650.0,1.05897425]
[1759800484452,0.0004,124670.0,124660.0,0.16043638]
[1759800484625,0.00054924,124670.0,124660.0,0.38811638]
[1759800484970,0.00258924,124670.0,124660.0,0.39007638]
[1759800485804,0.00454924,124670.0,124660.0,0.39107638]
[1759800486477,0.00454924,124670.0,124660.0,0.39207638]
[1759800486675,0.00658924,124670.0,124660.0,0.39207638]
[1759800487113,0.17006275,124670.0,124660.0,0.47347638]
[1759800487293,0.00963924,124670.0,124660.0,0.47347638]
[1759800488176,0.00454924,124670.0,124660.0,0.47543638]
[1759800488525,0.00658924,124670.0,124660.0,0.47543638]
[1759800488733,0.00454924,124670.0,124660.0,0.47543638]
[1759800488911,0.00534122,124670.0,124660.0,0.47543638]
[1759800490694,0.01043122,124670.0,124660.0,0.47347638]
[1759800490842,0.00738122,124670.0,124660.0,0.47543638]
[1759800491061,0.00534122,124670.0,124660.0,0.47866638]
[1759800491249,0.00534122,124670.0,124660.0,0.47543638]
[1759800491430,0.17085473,124670.0,124660.0,0.16243638]
[1759800491633,0.01043122,124670.0,124660.0,0.47347638]
[1759800491859,0.00534122,124670.0,124660.0,0.47543638]
[1759800492770,0.00534122,124670.0,124660.0,0.47866638]
[1759800493966,0.00534122,124670.0,124660.0,0.50273528]
[1759800495958,0.00134122,124670.0,124660.0,0.50073528]
[1759800496418,0.00234122,124670.0,124660.0,0.50373528]
[1759800497797,0.00234122,124670.0,124660.0,0.50050528]
[1759800498271,0.00234122,124670.0,124660.0,0.50362528]
[1759800498847,0.00234122,124670.0,124660.0,0.19258528]
[1759800499045,0.00234122,124670.0,124660.0,0.50358528]
[1759800505996,0.00448122,124670.0,124660.0,0.50046528]
[1759800506240,0.00234122,124670.0,124660.0,0.50046528]
[1759800506668,0.00234122,124670.0,124660.0,0.50358528]
[1759800506948,0.00234122,124670.0,124660.0,0.19258528]
[1759800507093,0.00747122,124670.0,124660.0,0.41514528]
[1759800507298,0.00747122,124670.0,124660.0,0.18750528]
[1759800507538,0.00448122,124670.0,124660.0,0.50066528]
[1759800508148,0.00747122,124670.0,124660.0,0.18750528]
[1759800508324,0.00747122,124670.0,124660.0,0.47443638]
[1759800508508,0.00747122,124670.0,124660.0,0.16343638]
[1759800508874,0.00747122,124670.0,124660.0,0.4985053]
[1759800509095,0.00747122,124670.0,124660.0,0.5006653]
[1759800509096,0.00448122,124670.0,124660.0,0.5006653]
[1759800509795,0.00234122,124670.0,124660.0,0.5006653]
[1759800510760,0.00448122,124670.0,124660.0,0.5006653]
[1759800510974,0.00234122,124670.0,124660.0,0.5006653]
[1759800511403,0.00448122,124670.0,124660.0,0.5006653]
[1759800512000,0.00234122,124670.0,124660.0,0.5006653]
[1759800512408,0.00448122,124670.0,124660.0,0.5006653]
[1759800513519,0.00234122,124670.0,124660.0,0.5006653]
[1759800514215,0.00234122,124670.0,124660.0,0.5037853]
[1759800514418,0.00234122,124670.0,124660.0,0.5006653]
[1759800514623,0.00448122,124670.0,124660.0,0.5006653]
[1759800515137,0.00234122,124670.0,124660.0,0.5006653]
[1759800515337,0.00448122,124670.0,124660.0,0.5006653]
[1759800515676,0.00234122,124670.0,124660.0,0.5006653]
[1759800516018,0.00747122,124670.0,124660.0,0.4985053]
[1759800516236,0.00448122,124670.0,124660.0,0.5006653]
[1759800516630,0.00234122,124670.0,124660.0,0.5006653]
[1759800516872,0.00744122,124670.0,124660.0,0.4151053]
[1759800517056,0.00744122,124670.0,124660.0,0.4984653]
[1759800517274,0.00451122,124670.0,124660.0,0.5004453]
[1759800517486,0.00451122,124670.0,124660.0,0.47637638]
[1759800517685,0.00234122,124670.0,124660.0,0.5035953]
[1759800519367,0.00234122,124670.0,124660.0,1.6641973]
[1759800519561,0.00234122,124670.0,124660.0,0.8141153]
[1759800521007,0.00234122,124670.0,124660.0,1.1541153]
[1759800528198,0.00234122,124670.0,124660.0,1.23723736]
[1759800529962,0.00234122,124670.0,124660.0,0.92627736]
[1759800530214,0.00234122,124670.0,124660.0,1.23719736]
[1759800530790,0.00234122,124670.0,124660.0,1.15383736]
[1759800531123,0.00234122,124670.0,124660.0,1.23719736]
[1759800531265,0.00234122,124670.0,124660.0,0.92627736]
[1759800531473,0.00234122,124670.0,124660.0,1.23719736]
[1759800531853,0.00234122,124670.0,124660.0,0.92627736]
[1759800532066,0.00234122,124670.0,124660.0,1.23719736]
[1759800532241,0.00234122,124670.0,124660.0,0.92627736]
[1759800532492,0.00234122,124670.0,124660.0,1.23719736]
[1759800538260,0.00437122,124670.0,124660.0,0.92312736]
[1759800538547,0.00747122,124670.0,124660.0,1.23202736]
[1759800538767,0.00437122,124670.0,124660.0,0.8400753]
[1759800538970,0.00747122,124670.0,124660.0,0.9517583]
[1759800539313,0.00437122,124670.0,124660.0,0.9517583]
[1759800539514,0.00234122,124670.0,124660.0,0.9538083]
[1759800539734,0.00234122,124670.0,124660.0,0.9568883]
[1759800541512,0.00437122,124670.0,124660.0,0.8683983]
[1759800541682,0.00234122,124670.0,124660.0,0.9538083]
[1759800542108,0.00234122,124670.0,124660.0,0.9568883]
[1759800542543,0.00234122,124670.0,124660.0,1.04001036]
[1759800548105,0.00234122,124670.0,124660.0,0.72913036]
[1759800548312,0.00234122,124670.0,124660.0,1.04001036]
[1759800549885,0.00234122,124670.0,124660.0,0.72913036]
[1759800550456,0.00234122,124670.0,124660.0,1.04001036]
[1759800552087,0.00234122,124670.0,124660.0,1.04401344]
[1759800552383,0.00234122,124670.0,124660.0,1.14486752]
[1759800552580,0.00234122,124670.0,124660.0,1.24486752]
[1759800552839,0.00234122,124670.0,124660.0,1.14486752]
[1759800553040,0.00234122,124670.0,124660.0,1.24486752]
[1759800556187,0.00234122,124670.0,124660.0,0.93398752]
[1759800556368,0.00234122,124670.0,124660.0,1.57430444]
[1759800556673,0.00234122,124670.0,124660.0,1.57122444]
[1759800556966,0.00234122,124670.0,124660.0,1.57417444]
[1759800560228,0.00234122,124670.0,124660.0,1.47417444]
[1759800560402,0.00234122,124670.0,124660.0,1.57417444]
[1759800561616,0.00234122,124670.0,124660.0,1.57122444]
[1759800562073,0.00234122,124670.0,124660.0,1.57417444]
[1759800564042,0.00234122,124670.0,124660.0,1.47417444]
[1759800564249,0.00234122,124670.0,124660.0,1.57417444]
[1759800565190,0.00234122,124670.0,124660.0,0.92690444]
[1759800565392,0.00234122,124670.0,124660.0,1.57114444]
[1759800565600,0.00234122,124670.0,124660.0,1.47409444]
[1759800565797,0.00234122,124670.0,124660.0,1.57409444]
[1759800583846,0.00234122,124670.0,124660.0,1.47409444]
[1759800584047,0.00234122,124670.0,124660.0,1.57409444]
[1759800587686,0.00234122,124670.0,124660.0,1.57114444]
[1759800588010,0.00234122,124670.0,124660.0,1.57427444]
[1759800590473,0.00758122,124670.0,124660.0,1.23557444]
[1759800591055,0.00447122,124670.0,124660.0,1.23557444]
[1759800591261,0.00234122,124670.0,124660.0,1.23766444]
[1759800591661,0.00234122,124670.0,124660.0,1.24079444]
[1759800592671,0.00447122,124670.0,124660.0,1.23766444]
[1759800593122,0.00234122,124670.0,124660.0,1.23766444]